fUSD/lending_fUSD_20241109
["ID","MTS","AMOUNT","RATE_DAILY","PERIOD"]
[341719269,1731124243948,-493.60965331,0.000299,2]
[341719270,1731124243958,-173.72,0.00029907,2]
[341719271,1731124243967,-392.65479106,0.00029924,15]
[341719272,1731124243976,-4246.7264,0.0002993,2]
[341719273,1731124243986,-204.35429077,0.00029933,2]
[341719274,1731124243995,-161.249,0.00029937,24]
[341719275,1731124244004,-7500.0,0.00029939,2]
[341719276,1731124244014,-50000.0,0.0002994,2]
[341719277,1731124244023,-883.7,0.0002994,10]
[341719278,1731124244032,-167.05071587,0.00029945,2]
[341719279,1731124244042,-500.0,0.00029949,2]
[341719280,1731124244051,-500.0,0.00029949,2]
[341719281,1731124244060,-500.0,0.00029949,2]
[341719282,1731124244070,-552.55302946,0.00029949,2]
[341719283,1731124244079,-50000.0,0.0002995,2]
[341719284,1731124244088,-150.0,0.0002996,2]
[341719285,1731124244098,-27572.68137343,0.0002996,2]
[341719286,1731124244110,-3284.10449579,0.0002996,2]
[341719288,1731124246402,-2046.0,0.0002996,2]
[341719304,1731124246672,-4574.11096134,0.0002996,2]
[341719305,1731124246685,-3776.3417,0.0002996,2]
[341719306,1731124246698,-1962.0001,0.0002996,2]
[341719307,1731124246989,-393.81396484,0.0002996,2]
[341719308,1731124247039,-6390.9474046,0.0002996,2]
[341719309,1731124247048,-163.71107619,0.0002996,2]
[341719310,1731124247058,-392.65479106,0.00029961,15]
[341719311,1731124247067,-4558.37909828,0.0002997,2]
[341719312,1731124247079,-311.64537149,0.0002997,2]
[341719313,1731124247090,-428.5387134,0.0002997,2]
[341719314,1731124247101,-612.5,0.0002997,2]
[341719315,1731124247112,-24330.57467753,0.0002997,2]
[341719316,1731124272520,522.0,0.000217,2]
[341719317,1731124273056,496.0,0.000217,2]
[341719318,1731124274222,388.9925,0.0002226,2]
[341719319,1731124276487,151.144,0.0002226,2]
[341719321,1731124354053,156.97,0.00015342,2]
[341719341,1731124719015,150.0,0.00022011,2]
[341719343,1731124963015,450.0,0.00021,2]
[341719346,1731125031528,163.47,0.00015342,2]
[341719348,1731125159142,-1162.29208685,0.00023963,2]
[341719349,1731125159162,-1053.0,0.00025224,2]
[341719350,1731125159187,-1053.0,0.00026552,2]
[341719351,1731125159208,-546.34767574,0.00026855,2]
[341719352,1731125253102,-565.86,0.00026467,2]
[341719353,1731125253125,-740.06,0.00027665,2]
[341719354,1731125253147,-1053.0,0.0002788,5]
[341719355,1731125253171,-740.06,0.00028109,2]
[341719356,1731125253193,-250.0,0.00028224,2]
[341719357,1731125253216,-250.51,0.00028337,2]
[341719358,1731125253239,-150.0,0.0002854,7]
[341719359,1731125253260,-740.06,0.00028554,2]
[341719360,1731125253287,-1000.0,0.000286,2]
[341719361,1731125253309,-164.28,0.00028641,2]
[341719362,1731125253333,-288.0,0.00028692,120]
[341719363,1731125253354,-565.86,0.00028731,2]
[341719364,1731125253377,-153.53,0.00028763,30]
[341719365,1731125253398,-740.06,0.00028998,2]
[341719366,1731125253420,-200.0,0.000292,10]
[341719367,1731125253441,-1053.0,0.00029274,5]
[341719368,1731125253463,-500.0,0.000293,10]
[341719369,1731125253484,-800.0,0.000294,10]
[341719370,1731125253505,-500.0,0.00029415,7]
[341719371,1731125253526,-166.67,0.00029422,2]
[341719372,1731125253550,-740.06,0.00029443,2]
[341719373,1731125253571,-1000.0,0.000295,10]
[341719374,1731125253592,-815.12925787,0.000296,10]
[341719383,1731125388861,989.0,0.000217,2]
[341719384,1731125390425,163.9,0.00021913,2]
[341719387,1731125431503,-152.0,0.00028749,3]
[341719388,1731125431513,-108.80890023,0.00028851,2]
[341719389,1731125431628,-52.66109977,0.00028851,2]
[341719390,1731125431637,-288.0,0.00028881,120]
[341719391,1731125431647,-161.47,0.00028995,2]
[341719392,1731125431656,-100.8142145,0.00029139,2]
[341719393,1731125431667,-60.6557855,0.00029139,2]
[341719394,1731125431677,-158.047,0.0002939,10]
[341719395,1731125431687,-304.95456276,0.00029415,7]
[341719396,1731125431719,-195.04543724,0.00029415,7]
[341719397,1731125431729,-309.92184866,0.000296,10]
[341719398,1731125431740,-174.94889347,0.000296,10]
[341719399,1731125431749,-397.677569,0.00029648,2]
[341719400,1731125431759,-261.44165258,0.00029648,2]
[341719403,1731125437375,-441.38578852,0.00029648,2]
[341719404,1731125437430,-1593.63784834,0.00029648,2]
[341719405,1731125437439,-23409.33682671,0.000297,2]
[341719406,1731125437486,-860.47468152,0.000297,2]
[341719407,1731125437497,-2825.5564357,0.000297,2]
[341719408,1731125437591,-916.99388566,0.000297,2]
[341719409,1731125437602,-1682.74138119,0.000297,2]
[341719410,1731125437613,-72235.68149624,0.000297,2]
[341719411,1731125437698,-2599.56740305,0.000297,2]
[341719412,1731125437808,-13078.79088993,0.000297,2]
[341719413,1731125437818,-3000.0,0.000297,2]
[341719414,1731125437828,-200.0,0.000297,10]
[341719415,1731125437837,-166.34451652,0.00029758,15]
[341719416,1731125437846,-166.34451651,0.00029789,15]
[341719417,1731125437856,-500.0,0.00029799,2]
[341719418,1731125437868,-345.04836435,0.00029799,2]
[341719419,1731125437880,-196.27804087,0.00029799,2]
[341719420,1731125437890,-321.73217625,0.00029799,2]
[341719421,1731125437900,-533.3348,0.000298,2]
[341719422,1731125437909,-4404.6443,0.000298,2]
[341719423,1731125437919,-65902.7193,0.000298,2]
[341719424,1731125437929,-200.0,0.000298,10]
[341719425,1731125437939,-1010.0,0.000298,2]
[341719426,1731125437948,-166.34451651,0.0002982,15]
[341719427,1731125437957,-166.34451651,0.00029851,15]
[341719428,1731125437966,-150.0,0.00029858,2]
[341719429,1731125437975,-560.97749109,0.00029862,2]
[341719430,1731125437985,-8000.0,0.00029863,2]
[341719431,1731125437995,-8000.0,0.00029863,2]
[341719432,1731125438005,-8000.0,0.00029863,2]
[341719433,1731125438015,-8000.0,0.00029863,2]
[341719434,1731125438025,-8000.0,0.00029863,2]
[341719435,1731125438034,-8000.0,0.00029863,2]
[341719436,1731125438043,-8000.0,0.00029863,2]
[341719437,1731125438052,-8000.0,0.00029863,2]
[341719438,1731125438061,-8000.0,0.00029863,2]
[341719439,1731125438070,-8000.0,0.00029863,2]
[341719440,1731125438079,-8000.0,0.00029863,2]
[341719441,1731125438088,-8000.0,0.00029863,2]
[341719442,1731125438097,-8000.0,0.00029863,2]
[341719443,1731125438106,-8000.0,0.00029863,2]
[341719444,1731125438114,-8000.0,0.00029863,2]
[341719445,1731125438124,-8000.0,0.00029863,2]
[341719446,1731125438132,-8000.0,0.00029863,2]
[341719447,1731125438141,-8000.0,0.00029863,2]
[341719448,1731125438150,-8000.0,0.00029863,2]
[341719449,1731125438159,-2469.428821,0.00029863,2]
[341719450,1731125439433,-731.73975,0.00029863,2]
[341719451,1731125439589,-1273.29336848,0.00029863,2]
[341719452,1731125439600,-445.29499999,0.00029863,2]
[341719453,1731125439611,-3080.24306053,0.00029863,2]
[341719454,1731125439620,-8000.0,0.00029863,2]
[341719455,1731125439630,-2916.04252155,0.00029863,2]
[341719456,1731125439642,-1886.52,0.00029863,2]
[341719465,1731125442539,-1711.80000004,0.00029863,2]
[341719466,1731125442551,-1485.63747841,0.00029863,2]
[341719467,1731125442560,-2283.9091726,0.00029863,2]
[341719468,1731125442572,-607.83435906,0.00029863,2]
[341719469,1731125442666,-255.76483728,0.00029863,2]
[341719470,1731125442676,-506.46845643,0.00029873,5]
[341719471,1731125442686,-150.0,0.00029878,2]
[341719472,1731125442696,-166.34451651,0.00029882,15]
[341719473,1731125442707,-740.06,0.00029887,2]
[341719474,1731125442717,-163.7110762,0.00029889,2]
[341719475,1731125442725,-176.07539558,0.00029895,2]
[341719476,1731125442735,-246.88516564,0.00029899,2]
[341719477,1731125442749,-253.11483436,0.00029899,2]
[341719478,1731125442759,-500.0,0.00029899,2]
[341719479,1731125442767,-478.68918808,0.00029899,2]
[341719480,1731125442784,-21.31081192,0.00029899,2]
[341719481,1731125442793,-155.85845057,0.00029899,2]
[341719482,1731125442802,-5061.47033503,0.000299,4]
[341719483,1731125442839,-1.10572569,0.000299,4]
[341719486,1731125442961,-2106.82425816,0.000299,4]
[341719510,1731125445441,-167.05071587,0.00029763,2]
[341719511,1731125445452,-6675.30617733,0.000299,4]
[341719512,1731125445465,-572.27999997,0.000299,4]
[341719513,1731125445476,-250.02970946,0.000299,4]
[341719514,1731125445495,-86810.76880177,0.000299,4]
[341719515,1731125445550,-38940.75834865,0.000299,4]
[341719516,1731125445563,-5578.09884541,0.000299,4]
[341719517,1731125445607,-777.2687132,0.000299,4]
[341719518,1731125445744,-1695.1748,0.000299,4]
[341719528,1731126292702,890.0,0.000218,2]
[341719529,1731126293333,801.0,0.000218,2]
[341719530,1731126308332,1197388.56,0.00016,2]
[341719531,1731126308361,104085.66811683,0.00016,2]
[341719532,1731126308389,2965000.0,0.00016,2]
[341719533,1731126308416,3442693.84124108,0.00016,2]
[341719534,1731126334774,300.41849588,0.0002,2]
[341719535,1731126355693,150.0,0.0001892,2]
[341719536,1731126355716,150.0,0.0001892,2]
[341719537,1731126355738,150.0,0.0001892,2]
[341719538,1731126355760,150.0,0.0001892,2]
[341719539,1731126355784,150.0,0.0001892,2]
[341719540,1731126355807,150.0,0.0001892,2]
[341719541,1731126355829,150.0,0.0001892,2]
[341719542,1731126355851,150.0,0.0001892,2]
[341719543,1731126355873,150.0,0.0001892,2]
[341719544,1731126355894,150.0,0.0001892,2]
[341719545,1731126355915,150.0,0.0001892,2]
[341719546,1731126355937,150.0,0.0001892,2]
[341719547,1731126355958,150.0,0.0001892,2]
[341719548,1731126355979,150.0,0.0001892,2]
[341719549,1731126356001,150.0,0.0001892,2]
[341719550,1731126356022,150.0,0.0001892,2]
[341719551,1731126356046,150.0,0.0001892,2]
[341719552,1731126356067,150.0,0.0001892,2]
[341719553,1731126356089,150.0,0.0001892,2]
[341719554,1731126356110,150.0,0.0001892,2]
[341719555,1731126356131,150.0,0.0001892,2]
[341719556,1731126356153,150.0,0.0001892,2]
[341719557,1731126356174,150.0,0.0001892,2]
[341719558,1731126356196,150.0,0.0001892,2]
[341719559,1731126356218,150.0,0.0001892,2]
[341719560,1731126356239,150.0,0.0001892,2]
[341719561,1731126356260,150.0,0.0001892,2]
[341719562,1731126356282,10871.23,0.0001892,2]
[341719563,1731126364552,150.0,0.0002,2]
[341719564,1731126375506,150.0,0.00018123,2]
[341719567,1731126411982,150.0,0.0002,2]
[341719568,1731126421941,150.0,0.00019725,2]
[341719569,1731126421963,150.0,0.00019725,2]
[341719570,1731126426140,-263.0,0.00021484,2]
[341719571,1731126426163,-150.0,0.00023033,2]
[341719572,1731126426185,-1108.38888046,0.00024,2]
[341719573,1731126426208,-509.27,0.00026586,2]
[341719574,1731126426230,-225.75,0.00028112,2]
[341719575,1731126426250,-250.51,0.00028332,2]
[341719576,1731126426275,-60.89458085,0.0002843,2]
[341719577,1731126438122,-103.38541915,0.0002843,2]
[341719578,1731126438143,-1000.0,0.0002846,2]
[341719579,1731126438164,-153.53,0.0002856,30]
[341719580,1731126438186,-569.6,0.00028563,120]
[341719581,1731126438207,-225.75,0.00028563,2]
[341719582,1731126438229,-250.0,0.00028588,2]
[341719583,1731126438252,-1000.0,0.00028767,2]
[341719584,1731126438274,-509.27,0.0002885,2]
[341719585,1731126438296,-225.75,0.00029015,2]
[341719586,1731126438317,-1000.0,0.00029041,2]
[341719587,1731126438338,-1000.0,0.00029315,2]
[341719588,1731126438359,-500.0,0.00029415,7]
[341719589,1731126438380,-225.75,0.00029467,2]
[341719590,1731126438402,-9757.7264,0.0002958,2]
[341719591,1731126438423,-1000.0,0.00029589,2]
[341719592,1731126438444,-3864.17525349,0.000296,2]
[341719596,1731126503930,150.0,0.0002,2]
[341719597,1731126503952,17.00504068,0.0002,2]
[341719598,1731126508349,7549.91857554,0.0002,2]
[341719600,1731126516045,150.0,0.00015342,2]
[341719601,1731126516066,5.08,0.00015342,2]
[341719606,1731126545173,-155.08,0.00024031,2]
[341719607,1731126546768,177.0,0.00026,2]
[341719609,1731126595094,1090.0,0.000207,2]
[341719610,1731126602520,300.0,0.00019725,2]
[341719611,1731126602626,280.97271045,0.00023,2]
[341719630,1731126631667,-150.5,0.00028192,2]
[341719632,1731126631676,-788.59124655,0.000287,2]
[341719634,1731126631692,-829.21953106,0.000287,2]
[341719636,1731126631702,-2194.55656055,0.000287,2]
[341719641,1731126631790,-9484.02203809,0.000287,2]
[341719642,1731126631894,-10603.61062375,0.000287,2]
[341719643,1731126631904,-250.0,0.00028789,2]
[341719644,1731126631913,-150.5,0.00028826,2]
[341719645,1731126631923,-21834.68767064,0.00029019,2]
[341719646,1731126631932,-6280.84,0.00029019,2]
[341719647,1731126631941,-600.0,0.000292,10]
[341719648,1731126631950,-1200.0,0.000293,10]
[341719649,1731126631959,-1800.0,0.000294,10]
[341719650,1731126631969,-150.5,0.0002946,2]
[341719651,1731126631979,-2400.0,0.000295,10]
[341719652,1731126631988,-218.62508918,0.000295,2]
[341719653,1731126631998,-1397.991,0.0002954,2]
[341719654,1731126632007,-166.34451652,0.0002959,15]
[341719655,1731126632016,-506.81,0.0002959,3]
[341719656,1731126632025,-807.0,0.00029599,2]
[341719657,1731126632034,-6135.82474651,0.000296,2]
[341719658,1731126632043,-65902.7193,0.000296,2]
[341719659,1731126632052,-533.3348,0.000296,2]
[341719660,1731126632061,-4404.6443,0.000296,2]
[341719661,1731126632070,-2000.0,0.000296,2]
[341719662,1731126632079,-1000.0,0.000296,2]
[341719663,1731126632089,-887.2663,0.000296,2]
[341719664,1731126632098,-3000.0,0.000296,10]
[341719665,1731126632107,-1000.0,0.000296,2]
[341719666,1731126632117,-218.62508918,0.000296,2]
[341719668,1731126632126,-714.7009053,0.0002961,2]
[341719670,1731126632135,-10000.0,0.0002962,2]
[341719672,1731126632144,-217.0,0.0002962,2]
[341719674,1731126632153,-10000.0,0.0002964,2]
[341719676,1731126632162,-1088.31,0.0002964,2]
[341719678,1731126632171,-6969.72,0.0002964,2]
[341719680,1731126632180,-166.34451651,0.00029646,15]
[341719681,1731126632190,-10000.0,0.0002966,2]
[341719682,1731126632199,-162.95331426,0.00029673,2]
[341719683,1731126632208,-10000.0,0.0002968,2]
[341719684,1731126632217,-7500.0,0.00029699,2]
[341719685,1731126632227,-500.0,0.00029699,2]
[341719686,1731126632236,-345.04836435,0.00029699,2]
[341719687,1731126632245,-196.27804087,0.00029699,2]
[341719688,1731126632254,-104567.3079,0.000297,2]
[341719689,1731126632264,-10000.0,0.000297,2]
[341719690,1731126632273,-28513.8098,0.000297,2]
[341719691,1731126632282,-328.9100611,0.000297,2]
[341719692,1731126632291,-600.0,0.000297,10]
[341719693,1731126632300,-1000.0,0.000297,2]
[341719694,1731126632309,-218.62508918,0.000297,2]
[341719695,1731126632318,-166.34451651,0.00029702,15]
[341719696,1731126632327,-10000.0,0.0002972,2]
[341719697,1731126632336,-10000.0,0.0002974,2]
[341719698,1731126632346,-166.34451651,0.00029757,15]
[341719699,1731126632355,-10000.0,0.0002976,2]
[341719700,1731126632364,-501.58749823,0.00029773,5]
[341719701,1731126632374,-500.0,0.00029773,2]
[341719702,1731126632383,-10000.0,0.0002978,2]
[341719703,1731126632392,-7500.0,0.00029799,2]
[341719704,1731126632401,-560.97749109,0.00029799,2]
[341719705,1731126632410,-10000.0,0.000298,2]
[341719706,1731126632419,-104066.4334815,0.000298,2]
[341719707,1731126632431,-813.698535,0.000298,2]
[341719708,1731126632441,-2966.48754,0.000298,2]
[341719718,1731126637601,-500.0,0.00029798,2]
[341719719,1731126637610,-500.0,0.00029798,2]
[341719720,1731126637619,-277.00386117,0.00029798,2]
[341719721,1731126638040,-222.99613883,0.00029798,2]
[341719722,1731126638048,-319.51356468,0.00029798,2]
[341719723,1731126638058,-14236.13029649,0.000298,2]
[341719724,1731126638075,-104276.56232143,0.000298,2]
[341719725,1731126638103,-123577.50832558,0.000298,2]
[341719726,1731126638112,-155.45469241,0.000298,2]
[341719727,1731126638122,-600.0,0.000298,10]
[341719728,1731126638132,-1000.0,0.000298,2]
[341719729,1731126638142,-267.56738571,0.000298,2]
[341719730,1731126638152,-166.34451651,0.00029813,15]
[341719731,1731126638163,-10000.0,0.0002982,2]
[341719732,1731126638172,-10000.0,0.0002984,2]
[341719733,1731126638182,-150.0,0.00029853,2]
[341719734,1731126638191,-150.0,0.00029854,2]
[341719735,1731126638201,-150.0,0.00029855,2]
[341719736,1731126638210,-150.0,0.00029858,2]
[341719737,1731126638219,-10000.0,0.0002986,2]
[341719738,1731126638228,-1000.0,0.00029863,2]
[341719739,1731126638237,-150.0,0.00029863,2]
[341719740,1731126638246,-150.0,0.00029864,2]
[341719741,1731126638255,-150.0,0.00029864,2]
[341719742,1731126638263,-166.34451651,0.00029869,15]
[341719743,1731126638273,-1500.0,0.00029871,2]
[341719744,1731126638283,-150.0,0.00029871,2]
[341719745,1731126638292,-502.47615105,0.00029873,5]
[341719746,1731126638301,-339.91461517,0.00029873,5]
[341719747,1731126638311,-500.53220989,0.00029873,5]
[341719748,1731126638320,-10000.0,0.0002988,2]
[341719749,1731126638330,-1500.0,0.00029889,2]
[341719750,1731126638340,-305.85800046,0.00029889,2]
[341719751,1731126638351,-150.0,0.00029891,2]
[341719752,1731126638360,-72606.33183625,0.000299,2]
[341719753,1731126638810,-2224.98751472,0.000299,2]
[341719757,1731126639691,-22002.04989577,0.000299,2]
[341719799,1731126645657,-777.2687132,0.00029302,2]
[341719806,1731126757525,-344.32,0.0002891,120]
[341719807,1731126757558,-200.0,0.0003,120]
[341719808,1731126757588,-503.974943,0.00030104,120]
[341719809,1731126757614,-500.0,0.00030104,120]
[341719810,1731126757639,-500.0,0.00030104,120]
[341719811,1731126757665,-200.0,0.00030104,120]
[341719812,1731126757808,-1445.51,0.00030136,120]
[341719813,1731126757968,-668.0,0.00030904,120]
[341719814,1731126758003,-200.0,0.000314,120]
[341719815,1731126758030,-1445.51,0.00031506,120]
[341719816,1731126758058,-1000.0,0.00031506,120]
[341719817,1731126758087,-1000.0,0.0003178,120]
[341719818,1731126758113,-356.20810577,0.00031945,120]
[341719819,1731126758141,-500.0,0.00032,120]
[341719820,1731126758167,-1000.0,0.00032054,120]
[341719821,1731126758196,-136.47695123,0.00032134,120]
[341719822,1731126824699,-500.0,0.0003046,120]
[341719823,1731126824725,-500.0,0.0003046,120]
[341719824,1731126824751,-200.0,0.0003046,120]
[341719825,1731126824792,-433.12304877,0.00032134,120]
[341719826,1731126824818,-1000.0,0.00032328,120]
[341719827,1731126824846,-344.32,0.00032523,120]
[341719828,1731126824871,-1000.0,0.00032602,120]
[341719829,1731126824902,-1445.51,0.00032876,120]
[341719830,1731126824927,-1000.0,0.00032876,120]
[341719831,1731126824954,-151.0,0.00033014,120]
[341719832,1731126824980,-1000.0,0.0003315,120]
[341719833,1731126825006,-632.38,0.0003337,120]
[341719834,1731126825031,-1000.0,0.00033424,120]
[341719835,1731126825058,-793.66695123,0.00033698,120]
[341719836,1731126862029,-999.0,0.00030136,120]
[341719837,1731126862093,-999.0,0.00031506,120]
[341719838,1731126862129,-999.0,0.00032876,120]
[341719839,1731126862158,-206.33304877,0.00033698,120]
[341719840,1731126862185,-2000.0,0.000337,120]
[341719841,1731126862219,-500.0,0.000337,120]
[341719842,1731126862249,-500.0,0.000337,120]
[341719843,1731126862534,-200.0,0.000337,120]
[341719844,1731126862561,-1000.0,0.00033972,120]
[341719845,1731126862587,-500.0,0.00034,120]
[341719846,1731126862614,-2096.66695123,0.00034,120]
[341719847,1731126873121,-546.66045042,0.00034,120]
[341719848,1731126873151,-1000.0,0.00034246,120]
[341719849,1731126873179,-999.0,0.00034246,120]
[341719850,1731126873207,-153.53,0.00034336,120]
[341719851,1731126873233,-1000.0,0.0003452,120]
[341719852,1731126873260,-200.0,0.00034761,120]
[341719853,1731126873287,-1000.0,0.00034794,120]
[341719854,1731126873314,-1000.0,0.00035,120]
[341719855,1731126873569,-1000.0,0.00035,120]
[341719856,1731126873596,-1000.0,0.00035,120]
[341719857,1731126873622,-610.0,0.00035,120]
[341719858,1731126873648,-1490.80954958,0.00035,120]
[341719859,1731126880889,-751.70982613,0.00035,120]
[341719860,1731126880916,-500.0,0.00035033,120]
[341719861,1731126880943,-1000.0,0.00035068,120]
[341719862,1731126880970,-1000.0,0.000351,120]
[341719863,1731126880997,-2000.0,0.000352,120]
[341719864,1731126881022,-500.0,0.000352,120]
[341719865,1731126881049,-1000.0,0.00035342,120]
[341719866,1731126881075,-158.128,0.00035565,120]
[341719867,1731126881101,-1000.0,0.00035616,120]
[341719868,1731126881128,-999.0,0.00035616,120]
[341719869,1731126881158,-569.6,0.00035704,120]
[341719870,1731126881185,-200.0,0.00035821,120]
[341719871,1731126881211,-321.56217387,0.0003589,120]
[341719873,1731126901989,-678.43782613,0.0003589,120]
[341719874,1731126902016,-500.0,0.00036,120]
[341719875,1731126902042,-1383.55616073,0.00036,120]
[341719876,1731126902070,-151.0,0.00036027,120]
[341719877,1731126902097,-344.32,0.00036137,120]
[341719878,1731126902122,-1000.0,0.00036164,120]
[341719879,1731126902149,-500.0,0.00036367,120]
[341719880,1731126902175,-1000.0,0.00036438,120]
[341719881,1731126902199,-2119.396997,0.000367,120]
[341719882,1731126902224,-445.902213,0.000367,120]
[341719883,1731126902252,-1000.0,0.00036712,120]
[341719884,1731126902278,-200.0,0.00036882,120]
[341719885,1731126902307,-677.38680314,0.00036986,120]
[341719886,1731126912407,-322.61319686,0.00036986,120]
[341719887,1731126912436,-787.04,0.00036986,120]
[341719888,1731126912465,-1050.0,0.00037,120]
[341719889,1731126912492,-153.53,0.00037224,120]
[341719890,1731126912518,-486.51443372,0.0003726,120]
[341719891,1731126912543,-200.0,0.000375,120]
[341719892,1731126912571,-500.0,0.000377,120]
[341719893,1731126912597,-200.0,0.00037943,120]
[341719894,1731126912623,-943.27551853,0.00038,120]
[341719895,1731126912647,-1000.0,0.00038,120]
[341719896,1731126912672,-1000.0,0.00038,120]
[341719897,1731126912697,-1000.0,0.00038,120]
[341719898,1731126912722,-978.05034686,0.00038,120]
[341719899,1731126912747,-500.0,0.00038,120]
[341719900,1731126912773,-878.97650403,0.00038,120]
[341719901,1731126914068,-71.02349597,0.00038,120]
[341719902,1731126914100,-2154.38379087,0.00038,120]
[341719903,1731126914136,-922.75598135,0.00038,120]
[341719904,1731126914170,-789.62652842,0.00038,120]
[341719905,1731126914208,-150.5,0.0003837,120]
[341719906,1731126914247,-255.0,0.0003837,120]
[341719907,1731126914279,-150.5,0.0003837,120]
[341719908,1731126914312,-255.0,0.0003837,120]
[341719909,1731126914343,-150.5,0.0003838,120]
[341719910,1731126914376,-255.0,0.0003838,120]
[341719911,1731126914409,-150.5,0.0003838,120]
[341719912,1731126914445,-255.0,0.0003838,120]
[341719913,1731126914476,-255.0,0.0003838,120]
[341719914,1731126914508,-264.04,0.0003838,120]
[341719915,1731126914542,-150.5,0.0003839,120]
[341719916,1731126914571,-255.0,0.0003839,120]
[341719917,1731126914599,-150.5,0.0003839,120]
[341719918,1731126914630,-255.0,0.0003839,120]
[341719919,1731126914662,-283.78,0.0003839,120]
[341719920,1731126914693,-255.0,0.0003839,120]
[341719921,1731126914725,-255.0,0.0003839,120]
[341719922,1731126914754,-157.74,0.0003839,120]
[341719923,1731126914787,-157.47,0.0003839,120]
[341719924,1731126914819,-968.23051403,0.000385,120]
[341719925,1731126914852,-1012.03309691,0.000387,120]
[341719926,1731126914885,-20.91659245,0.0003897,120]
[341719927,1731126942076,-129.58340755,0.0003897,120]
[341719928,1731126942103,-150.5,0.0003898,120]
[341719929,1731126942130,-150.5,0.0003899,120]
[341719930,1731126942155,-154.96,0.0003899,120]
[341719931,1731126942181,-150.5,0.0003899,120]
[341719932,1731126942207,-151.87,0.0003899,120]
[341719933,1731126942234,-606.44065524,0.00039,120]
[341719934,1731126942259,-256.75634574,0.00039,120]
[341719935,1731126942285,-850.0,0.00039,120]
[341719936,1731126942310,-200.0,0.00039003,120]
[341719937,1731126942337,-500.0,0.00039033,120]
[341719938,1731126942364,-151.0,0.00039041,120]
[341719939,1731126942393,-569.6,0.00039274,120]
[341719940,1731126942421,-344.32,0.00039751,120]
[341719941,1731126942447,-150.5,0.0003997,120]
[341719942,1731126942473,-150.5,0.0003998,120]
[341719943,1731126942499,-547.59284728,0.0003999,120]
[341719944,1731126942525,-150.5,0.0003999,120]
[341719945,1731126942550,-199.22,0.0003999,120]
[341719946,1731126942579,-500.0,0.0004,120]
[341719947,1731126942606,-2000.0,0.0004,120]
[341719948,1731126942672,-864.0,0.0004,120]
[341719949,1731126942698,-152.33955213,0.0004,120]
[341719950,1731126942723,-799.95289983,0.0004,120]
[341719951,1731126942750,-119.36429223,0.0004,120]
[341719953,1731127174365,156.58,0.00015342,2]
[341719955,1731127403974,617.21,0.00027634,120]
[341719957,1731127535140,-296.15403068,0.000209,2]
[341719958,1731127617081,-908.84596932,0.000209,2]
[341719959,1731127617102,-450.0,0.00021,2]
[341719960,1731127617122,-363.38280785,0.00023,2]
[341719961,1731127626099,-136.61719215,0.00023,2]
[341719962,1731127626123,-1199.01098189,0.00023155,2]
[341719963,1731127626146,-1497.251,0.00023155,2]
[341719964,1731127626167,-550.0,0.00025,2]
[341719965,1731127626190,-226.716,0.00025155,2]
[341719966,1731127626210,-417.25841988,0.00025642,2]
[341719967,1731127751068,-198.19158012,0.00025642,2]
[341719980,1731127831759,-150.0,0.00027205,2]